[Event "*** Titled Tuesday 3|2 Blitz"]
[Site "Chess.com"]
[Date "2016.06.07"]
[Round "9"]
[White "gmjoey1"]
[Black "Newlight1"]
[Result "1/2-1/2"]
[WhiteElo "2538"]
[BlackElo "2234"]
[TimeControl "180+2"]
[EndTime "18:54:43 PDT"]
[Termination "Game drawn by agreement"]

1. e4 {[%clk 0:03:01.9]} 1... c5 {[%clk 0:02:59.5]} 2. c3 {[%clk 0:03:00.2]}
2... Nf6 {[%clk 0:02:59]} 3. e5 {[%clk 0:03:00.6]} 3... Nd5 {[%clk 0:03:00.1]}
4. d4 {[%clk 0:03:02.5]} 4... cxd4 {[%clk 0:03:01]} 5. cxd4 {[%clk 0:03:04.4]}
5... d6 {[%clk 0:03:02.5]} 6. Bc4 {[%clk 0:03:04.8]} 6... Nb6 {[%clk 0:02:55.5]}
7. Bb5+ {[%clk 0:03:05.6]} 7... Bd7 {[%clk 0:02:51.1]} 8. e6 {[%clk 0:03:06]}
8... fxe6 {[%clk 0:02:25.2]} 9. Bd3 {[%clk 0:03:06.2]} 9... g6 {[%clk
0:02:22.7]} 10. h4 {[%clk 0:03:06.9]} 10... Bg7 {[%clk 0:02:17.2]} 11. h5 {[%clk
0:03:07.2]} 11... Ba4 {[%clk 0:02:11.7]} 12. Qg4 {[%clk 0:03:00.9]} 12... Nc6
{[%clk 0:02:10.7]} 13. hxg6 {[%clk 0:02:55.4]} 13... Nb4 {[%clk 0:01:56]} 14.
Be4 {[%clk 0:02:17.5]} 14... d5 {[%clk 0:01:55.1]} 15. a3 {[%clk 0:02:07.9]}
15... dxe4 {[%clk 0:01:19.5]} 16. axb4 {[%clk 0:02:07.8]} 16... Qxd4 {[%clk
0:01:19.7]} 17. Nc3 {[%clk 0:02:06.6]} 17... Qxb4 {[%clk 0:01:20.4]} 18. Ne2
{[%clk 0:01:56.6]} 18... Rd8 {[%clk 0:01:12.7]} 19. O-O {[%clk 0:01:44.6]} 19...
h5 {[%clk 0:01:12.1]} 20. Qxe6 {[%clk 0:01:30.5]} 20... Bb3 {[%clk 0:01:04.7]}
21. Qh3 {[%clk 0:01:31.8]} 21... Rf8 {[%clk 0:00:53]} 22. Qxh5 {[%clk
0:01:22.7]} 22... Rh8 {[%clk 0:00:50.4]} 23. Qg4 {[%clk 0:01:16]} 23... Nd7
{[%clk 0:00:48.6]} 24. Qxe4 {[%clk 0:01:07.6]} 24... Qxe4 {[%clk 0:00:41.2]} 25.
Nxe4 {[%clk 0:01:07.4]} 25... a6 {[%clk 0:00:42.3]} 26. N2g3 {[%clk 0:00:59.8]}
26... Bd5 {[%clk 0:00:39.2]} 27. Re1 {[%clk 0:01:00.5]} 27... Bxe4 {[%clk
0:00:34.8]} 28. Nxe4 {[%clk 0:00:58.7]} 28... Ne5 {[%clk 0:00:35.7]} 29. Bg5
{[%clk 0:00:56.8]} 29... Nxg6 {[%clk 0:00:33]} 30. Rac1 {[%clk 0:00:58]} 30...
Bxb2 {[%clk 0:00:30]} 31. Rc7 {[%clk 0:00:58.3]} 31... b5 {[%clk 0:00:27.2]} 32.
Rc6 {[%clk 0:00:47.5]} 32... Kf7 {[%clk 0:00:26]} 33. Rxa6 {[%clk 0:00:46.5]}
33... b4 {[%clk 0:00:27]} 34. Bd2 {[%clk 0:00:44.7]} 34... Rxd2 {[%clk
0:00:19.8]} 35. Nxd2 {[%clk 0:00:44.6]} 35... Bc3 {[%clk 0:00:21.7]} 36. Re2
{[%clk 0:00:43.3]} 36... Nf4 {[%clk 0:00:19.6]} 37. Re4 {[%clk 0:00:43.2]} 37...
Bxd2 {[%clk 0:00:20]} 38. g3 {[%clk 0:00:39.3]} 38... Nd3 {[%clk 0:00:13.9]} 39.
Rd4 {[%clk 0:00:38.1]} 39... Ne5 {[%clk 0:00:11]} 40. Kg2 {[%clk 0:00:35]} 40...
Rh2+ {[%clk 0:00:09.9]} 41. Kf1 {[%clk 0:00:32.4]} 41... Rh1+ {[%clk 0:00:10.4]}
42. Kg2 {[%clk 0:00:32.6]} 42... Rh2+ {[%clk 0:00:10.1]} 43. Kf1 {[%clk
0:00:33.1]} 43... Rh1+ {[%clk 0:00:09.9]} 44. Ke2 {[%clk 0:00:33.7]} 44... Bc3
{[%clk 0:00:10.4]} 45. Rf4+ {[%clk 0:00:34.8]} 45... Kg7 {[%clk 0:00:07.4]} 46.
f3 {[%clk 0:00:35.9]} 46... Re1+ {[%clk 0:00:05.8]} 47. Kf2 {[%clk 0:00:37.3]}
47... Nd3+ {[%clk 0:00:06.5]} 48. Kg2 {[%clk 0:00:38.6]} 48... Nxf4+ {[%clk
0:00:08.4]} 49. gxf4 {[%clk 0:00:39.8]} 49... b3 {[%clk 0:00:09.5]} 50. Rb6
{[%clk 0:00:41.2]} 50... b2 {[%clk 0:00:10.1]} 51. f5 {[%clk 0:00:43.1]} 51...
Bf6 {[%clk 0:00:11.1]} 52. Kh3 {[%clk 0:00:41.6]} 52... b1=Q {[%clk 0:00:12.1]}
53. Rxb1 {[%clk 0:00:41.4]} 53... Rxb1 {[%clk 0:00:14]} 54. Kg4 {[%clk
0:00:42.4]} 54... Rg1+ {[%clk 0:00:14.4]} 55. Kh5 {[%clk 0:00:43]} 55... Rg5+
{[%clk 0:00:14.9]} 56. Kh4 {[%clk 0:00:44.9]} 56... Rxf5+ {[%clk 0:00:16.2]} 57.
Kg4 {[%clk 0:00:46.8]} 57... Rg5+ {[%clk 0:00:16.2]} 58. Kf4 {[%clk 0:00:48.7]}
58... Kg6 {[%clk 0:00:16.9]} 59. Ke4 {[%clk 0:00:50.6]} 59... Rf5 {[%clk
0:00:17.9]} 60. f4 {[%clk 0:00:51.5]} 60... e5 {[%clk 0:00:19.1]} 61. fxe5
{[%clk 0:00:51.9]} 61... Rxe5+ {[%clk 0:00:21]} 62. Kf4 {[%clk 0:00:53.6]} 62...
Bg7 {[%clk 0:00:21.5]} 63. Kg4 {[%clk 0:00:54.2]} 63... Re4+ {[%clk 0:00:21.8]}
64. Kf3 {[%clk 0:00:56.1]} 64... Kf5 {[%clk 0:00:23.2]} 65. Kg3 {[%clk 0:00:58]}
65... Be5+ {[%clk 0:00:23.7]} 66. Kf3 {[%clk 0:00:59.9]} 66... Bf4 {[%clk
0:00:25.1]} 67. Kg2 {[%clk 0:00:58.9]} 67... Kg4 {[%clk 0:00:26.4]} 68. Kf2
{[%clk 0:01:00.8]} 68... Ra4 {[%clk 0:00:23.2]} 69. Ke2 {[%clk 0:01:01.9]} 69...
Ra3 {[%clk 0:00:22.3]} 70. Kd1 {[%clk 0:01:02.6]} 70... Ra2 {[%clk 0:00:21.8]}
71. Ke1 {[%clk 0:01:01.8]} 71... Kf3 {[%clk 0:00:20.9]} 1/2-1/2

[Event "*** Titled Tuesday 3|2 Blitz"]
[Site "Chess.com"]
[Date "2016.06.07"]
[Round "9"]
[White "Keaton87"]
[Black "Danhy"]
[Result "1-0"]
[WhiteElo "2491"]
[BlackElo "2493"]
[TimeControl "180+2"]
[EndTime "18:55:02 PDT"]
[Termination "Keaton87 won by resignation"]

1. d4 {[%clk 0:03:01.9]} 1... Nf6 {[%clk 0:03:00.1]} 2. Nf3 {[%clk 0:03:02.2]}
2... g6 {[%clk 0:03:00.8]} 3. Bg5 {[%clk 0:03:02.5]} 3... Bg7 {[%clk 0:03:00.9]}
4. Nbd2 {[%clk 0:03:03.5]} 4... d5 {[%clk 0:03:01.5]} 5. e3 {[%clk 0:03:04.4]}
5... c6 {[%clk 0:03:02.1]} 6. Be2 {[%clk 0:03:05.5]} 6... O-O {[%clk 0:03:02.6]}
7. O-O {[%clk 0:03:06.4]} 7... Nbd7 {[%clk 0:03:03.2]} 8. c4 {[%clk 0:03:07.1]}
8... Re8 {[%clk 0:02:54.5]} 9. h3 {[%clk 0:03:06]} 9... h6 {[%clk 0:02:53.4]}
10. Bf4 {[%clk 0:03:07.1]} 10... dxc4 {[%clk 0:02:47.6]} 11. Nxc4 {[%clk
0:03:07.7]} 11... Nd5 {[%clk 0:02:48.6]} 12. Bg3 {[%clk 0:03:05.6]} 12... N7b6
{[%clk 0:02:45.6]} 13. Nce5 {[%clk 0:02:59.2]} 13... Nd7 {[%clk 0:02:44.1]} 14.
Rc1 {[%clk 0:02:58.7]} 14... Nxe5 {[%clk 0:02:43.9]} 15. Nxe5 {[%clk 0:02:59.8]}
15... Be6 {[%clk 0:02:44.3]} 16. Qd2 {[%clk 0:02:57.4]} 16... Nf6 {[%clk
0:02:42.4]} 17. Bf3 {[%clk 0:02:55.1]} 17... Bxa2 {[%clk 0:02:35.6]} 18. b4
{[%clk 0:02:55.7]} 18... Bd5 {[%clk 0:02:31.8]} 19. b5 {[%clk 0:02:45.9]} 19...
Bxf3 {[%clk 0:02:28.1]} 20. gxf3 {[%clk 0:02:46.8]} 20... Nh5 {[%clk 0:02:05.3]}
21. Bh2 {[%clk 0:02:38.3]} 21... cxb5 {[%clk 0:02:01.6]} 22. Qa2 {[%clk
0:02:29.9]} 22... e6 {[%clk 0:02:02]} 23. Rc5 {[%clk 0:02:26.9]} 23... a6 {[%clk
0:01:46.2]} 24. Rfc1 {[%clk 0:02:27.6]} 24... Re7 {[%clk 0:01:46.4]} 25. Qc2
{[%clk 0:02:10.4]} 25... Nf6 {[%clk 0:01:27.2]} 26. Nd3 {[%clk 0:01:17.4]} 26...
Nd5 {[%clk 0:01:22.5]} 27. Be5 {[%clk 0:01:02]} 27... Bf8 {[%clk 0:01:19]} 28.
Rc8 {[%clk 0:00:55.9]} 28... Rxc8 {[%clk 0:01:02.4]} 29. Qxc8 {[%clk 0:00:57.5]}
29... Re8 {[%clk 0:00:40.3]} 30. Qxb7 {[%clk 0:00:57]} 30... Qg5+ {[%clk
0:00:41.1]} 31. Kh2 {[%clk 0:00:51.4]} 31... Qe7 {[%clk 0:00:24]} 32. Qxa6
{[%clk 0:00:50.3]} 32... Qa3 {[%clk 0:00:24.3]} 33. Qxb5 {[%clk 0:00:34.6]}
33... Ra8 {[%clk 0:00:24.2]} 34. Rc6 {[%clk 0:00:25.6]} 34... Bg7 {[%clk
0:00:22.9]} 35. Bg3 {[%clk 0:00:26.4]} 35... h5 {[%clk 0:00:23.3]} 36. h4 {[%clk
0:00:25.6]} 36... Ne7 {[%clk 0:00:23]} 37. Rb6 {[%clk 0:00:23.9]} 37... Nf5
{[%clk 0:00:22.5]} 38. Rb8+ {[%clk 0:00:24.6]} 38... Rxb8 {[%clk 0:00:23.4]} 39.
Qxb8+ {[%clk 0:00:26.5]} 39... Qf8 {[%clk 0:00:24.3]} 40. Qxf8+ {[%clk
0:00:26.8]} 40... Bxf8 {[%clk 0:00:25]} 41. Kg2 {[%clk 0:00:25.5]} 41... Be7
{[%clk 0:00:25.9]} 42. Kh3 {[%clk 0:00:25.1]} 42... Kf8 {[%clk 0:00:26.7]} 43.
Ne5 {[%clk 0:00:23]} 43... Ke8 {[%clk 0:00:24]} 44. f4 {[%clk 0:00:22.7]} 44...
Bf6 {[%clk 0:00:24.5]} 45. Nf3 {[%clk 0:00:21.9]} 45... Ke7 {[%clk 0:00:24.6]}
46. Ng5 {[%clk 0:00:23.1]} 46... Bxg5 {[%clk 0:00:24.9]} 47. fxg5 {[%clk
0:00:22.8]} 47... Kd7 {[%clk 0:00:26.2]} 48. Kg2 {[%clk 0:00:21.7]} 48... Kc6
{[%clk 0:00:27.3]} 49. Kf3 {[%clk 0:00:23.1]} 49... Ne7 {[%clk 0:00:27]} 50. Ke4
{[%clk 0:00:23.7]} 50... Kd7 {[%clk 0:00:25.3]} 51. Ke5 {[%clk 0:00:24.9]} 51...
Nc6+ {[%clk 0:00:18.3]} 52. Kf6 {[%clk 0:00:22.3]} 52... Ke8 {[%clk 0:00:19.3]}
53. Be5 {[%clk 0:00:22.2]} 53... Ne7 {[%clk 0:00:19.3]} 54. e4 {[%clk
0:00:21.3]} 54... Nc6 {[%clk 0:00:16.7]} 55. d5 {[%clk 0:00:19.3]} 55... exd5
{[%clk 0:00:16.9]} 56. exd5 {[%clk 0:00:21.2]} 56... Nb4 {[%clk 0:00:17.2]} 57.
d6 {[%clk 0:00:14.6]} 57... Kf8 {[%clk 0:00:15.6]} 58. Bd4 {[%clk 0:00:09.6]}
58... Nd5+ {[%clk 0:00:11.1]} 59. Ke5 {[%clk 0:00:11]} 59... Nb4 {[%clk
0:00:11.4]} 60. Bc5 {[%clk 0:00:10.4]} 60... Nc6+ {[%clk 0:00:11.8]} 61. Kd5
{[%clk 0:00:11.1]} 61... Nd8 {[%clk 0:00:13]} 62. d7+ {[%clk 0:00:11.4]} 62...
Kg7 {[%clk 0:00:14.1]} 63. Be7 {[%clk 0:00:12.6]} 63... Ne6 {[%clk 0:00:14.5]}
64. d8=Q {[%clk 0:00:13.2]} 64... Nxd8 {[%clk 0:00:15.6]} 65. Bxd8 {[%clk
0:00:15.1]} 65... f6 {[%clk 0:00:16.4]} 66. Bxf6+ {[%clk 0:00:15.8]} 1-0